fUSD/lending_fUSD_20240820
["ID","MTS","AMOUNT","RATE_DAILY","PERIOD"]
[335398797,1724188243462,-151.0,0.00010864,2]
[335398799,1724188243471,-166.64792709,0.00010864,2]
[335398802,1724188243481,-9654.6683165,0.00010865,2]
[335398803,1724188243490,-6431.6486933,0.00010865,2]
[335398806,1724188243501,-774.27615264,0.00010865,2]
[335398808,1724188243513,-521.31163644,0.00010865,2]
[335398810,1724188243523,-311.7686698,0.00010865,2]
[335398812,1724188243534,-684.93719709,0.00010865,2]
[335398814,1724188243545,-1516.6,0.00010865,2]
[335398817,1724188243556,-7440.45079688,0.00010865,2]
[335398819,1724188243567,-993.12736041,0.00010865,2]
[335398821,1724188243578,-10657.64146005,0.00010865,2]
[335398823,1724188243589,-1000.0,0.00010865,2]
[335398825,1724188243600,-5503.0,0.00010865,2]
[335398828,1724188243611,-7764.0017081,0.00010865,2]
[335398930,1724188244619,-14038.9224587,0.00010865,2]
[335398932,1724188244631,-661.3131406,0.00010865,2]
[335398934,1724188244641,-754.9399989,0.00010865,2]
[335398936,1724188244652,-305.67881732,0.00010865,2]
[335398938,1724188244663,-3265.01060924,0.00010865,2]
[335398940,1724188244674,-697.23822464,0.00010865,2]
[335398942,1724188244684,-340.68338463,0.00010865,2]
[335398944,1724188244696,-6644.55524363,0.00010865,2]
[335398946,1724188244707,-528.30239588,0.00010865,2]
[335398948,1724188244717,-2934.77971038,0.00010865,2]
[335398951,1724188244729,-675.025,0.00010865,2]
[335398953,1724188244740,-444.24779552,0.00010865,2]
[335398955,1724188244750,-10992.66936184,0.00010865,2]
[335398957,1724188244761,-463.3999995,0.00010865,2]
[335398963,1724188246214,-1006.8,0.00010865,2]
[335398964,1724188246225,-508.07079341,0.00010865,2]
[335398965,1724188246237,-1360.57755462,0.00010865,2]
[335398966,1724188246246,-150.75,0.00010867,2]
[335398967,1724188246256,-2099.9405648,0.00010867,2]
[335398968,1724188246268,-26965.36510827,0.00010867,2]
[335398970,1724188246624,-844.76711332,0.00010867,2]
[335398971,1724188246636,-310.75725806,0.00010867,2]
[335398972,1724188246647,-4417.52516995,0.00010867,2]
[335398973,1724188246658,-660.54195458,0.00010867,2]
[335398974,1724188246669,-832.13,0.00010867,2]
[335398975,1724188246680,-1326.68,0.00010867,2]
[335398976,1724188246696,-907.5,0.00010867,2]
[335398977,1724188246706,-4287.8137196,0.00010867,2]
[335398978,1724188246717,-1529.47956354,0.00010867,2]
[335398979,1724188246728,-735.97623011,0.00010867,2]
[335398980,1724188246739,-1927.4567856,0.00010867,2]
[335398981,1724188246749,-10401.00682633,0.00010867,2]
[335398982,1724188246760,-1417.56443875,0.00010867,2]
[335398983,1724188246771,-362.05760545,0.00010867,2]
[335398984,1724188322348,-158.95181848,0.0001,2]
[335398985,1724188428269,170.53174495,0.0001,2]
[335398986,1724188499877,91.71981471,9.905e-05,2]
[335398987,1724188499904,130.56018529,9.905e-05,2]
[335398990,1724188528459,93.06643657,8.219e-05,2]
[335398991,1724188528485,375.58356343,8.219e-05,2]
[335398992,1724188660588,409.92,9.882e-05,2]
[335398993,1724188672078,155.09925405,9.962e-05,2]
[335398994,1724188687967,155.0,9.962e-05,2]
[335398995,1724188737124,-500.0,0.00010214,2]
[335398996,1724188737151,-468.65,0.00010471,2]
[335398997,1724188737177,-347.36013889,0.00010471,2]
[335398998,1724188737203,-156.77939307,0.00010599,2]
[335398999,1724188737229,-155.0,0.00010699,2]
[335399000,1724188737254,-287.0503,0.00010713,2]
[335399001,1724188737278,-320.72880982,0.0001079,2]
[335399002,1724188737301,-200.0,0.00010813,2]
[335399003,1724188737323,-181.69711588,0.00010813,2]
[335399004,1724188737347,-300.0,0.00010819,2]
[335399005,1724188737369,-300.0,0.00010819,2]
[335399006,1724188737609,-217.38928,0.0001082,2]
[335399007,1724188737633,-217.38929,0.0001082,2]
[335399008,1724188737655,-217.38929,0.0001082,2]
[335399009,1724188737678,-217.38929,0.0001082,2]
[335399010,1724188737702,-217.38929,0.0001082,2]
[335399011,1724188737724,-217.38929,0.0001082,2]
[335399012,1724188737748,-151.0,0.0001085,2]
[335399013,1724188737771,-9384.08483791,0.00010852,2]
[335399014,1724188737794,-151.0,0.0001086,2]
[335399015,1724188737818,-151.0,0.0001086,2]
[335399016,1724188737840,-155.0,0.00010862,2]
[335399017,1724188737863,-151.0,0.00010864,2]
[335399018,1724188737887,-25436.09828188,0.00010867,2]
[335399021,1724188897581,250.0,9.95e-05,2]
[335399022,1724188993807,416.77350812,8.219e-05,2]
[335399023,1724188993833,5.00649188,8.219e-05,2]
[335399024,1724188997452,153.5,9.899e-05,2]
[335399028,1724189166307,672.06,9.881e-05,2]
[335399041,1724189236353,500.0,0.00010008,2]
[335399042,1724189236760,487.21036004,0.00010016,2]
[335399047,1724189340891,7907.65,9.859e-05,2]
[335399056,1724189365673,-3217.89581769,0.0001,2]
[335399057,1724189365737,-1945.0122477,0.0001,2]
[335399063,1724189423727,2612.0,0.00012111,30]
[335399081,1724189432469,-17643.97378947,0.0001,2]
[335399101,1724189434758,153.52,9.868e-05,2]
[335399103,1724189438378,-25958.44455368,0.0001,2]
[335399104,1724189438388,-200.0,0.0001,2]
[335399105,1724189438397,-150.0,0.0001,2]
[335399106,1724189438407,-150.0,0.0001,2]
[335399107,1724189438417,-151.46325954,0.0001,2]
[335399108,1724189438426,-174.43859392,0.0001,2]
[335399109,1724189438435,-200.0,0.0001,2]
[335399110,1724189438445,-12.78963996,0.00010016,2]
[335399111,1724189438454,-431.91578682,0.00010097,2]
[335399112,1724189438464,-500.0,0.00010244,2]
[335399113,1724189438474,-500.0,0.00010314,2]
[335399114,1724189438483,-421.78,0.00010471,2]
[335399115,1724189438493,-155.0,0.00010505,2]
[335399116,1724189438502,-293.68354989,0.00010566,2]
[335399117,1724189438512,-687.53484988,0.00010566,2]
[335399118,1724189438521,-500.0,0.00010691,2]
[335399119,1724189438531,-207.021857,0.00010699,2]
[335399120,1724189438540,-155.0,0.00010699,2]
[335399121,1724189438549,-271.90656664,0.00010838,2]
[335399122,1724189438559,-271.90656664,0.00010844,2]
[335399123,1724189438568,-271.90656664,0.00010849,2]
[335399124,1724189438577,-271.90656664,0.00010851,2]
[335399125,1724189438588,-271.90656664,0.00010853,2]
[335399126,1724189438597,-271.90656664,0.00010856,2]
[335399127,1724189438606,-271.90656664,0.00010865,2]
[335399128,1724189438615,-77977.68632557,0.00010867,2]
[335399129,1724189438624,-197.38559636,0.00010867,2]
[335399130,1724189438633,-181.94838812,0.00010867,2]
[335399131,1724189438642,-89220.97816352,0.00010868,2]
[335399132,1724189438651,-3767.40879952,0.0001087,2]
[335399133,1724189438662,-9654.6683165,0.00010873,2]
[335399135,1724189438672,-3767.40879952,0.00010873,2]
[335399137,1724189438681,-58875.02222611,0.00010874,2]
[335399139,1724189438691,-166.64792709,0.00010877,2]
[335399140,1724189438700,-58875.02222611,0.00010877,2]
[335399143,1724189438710,-9654.6683165,0.00010877,2]
[335399144,1724189438720,-9654.6683165,0.00010877,2]
[335399146,1724189438733,-271.90656664,0.00010877,2]
[335399148,1724189438743,-166.64792709,0.00010878,2]
[335399151,1724189438752,-58875.02222611,0.00010878,2]
[335399152,1724189438762,-166.64792709,0.00010879,2]
[335399154,1724189438774,-58875.02222611,0.00010879,2]
[335399156,1724189438784,-150.75,0.00010889,2]
[335399158,1724189438793,-155.0,0.0001089,2]
[335399160,1724189438804,-11178.20693889,0.00010899,2]
[335399162,1724189438815,-274.29840679,0.000109,2]
[335399164,1724189438824,-500.0,0.00010938,2]
[335399166,1724189438834,-500.0,0.00010942,2]
[335399168,1724189438843,-500.0,0.00010948,2]
[335399170,1724189438853,-440.08291615,0.00010949,2]
[335399172,1724189438862,-264.6397361,0.00010949,2]
[335399174,1724189438872,-500.0,0.00010958,2]
[335399176,1724189438882,-500.0,0.00010958,2]
[335399178,1724189438891,-500.0,0.00010958,2]
[335399180,1724189438901,-500.0,0.00010958,2]
[335399181,1724189438910,-500.0,0.00010958,2]
[335399183,1724189438920,-500.0,0.00010958,2]
[335399185,1724189438929,-812.98,0.00010958,2]
[335399187,1724189438939,-812.98,0.00010958,2]
[335399189,1724189438948,-500.0,0.00010958,2]
[335399191,1724189438958,-500.0,0.00010958,2]
[335399193,1724189438967,-500.0,0.00010958,2]
[335399195,1724189438977,-500.0,0.00010958,2]
[335399197,1724189438986,-512.76,0.00010958,2]
[335399199,1724189438995,-512.76,0.00010958,2]
[335399201,1724189439004,-500.0,0.00010958,2]
[335399203,1724189439014,-500.0,0.00010958,2]
[335399205,1724189439023,-375.36915227,0.00010958,2]
[335399207,1724189439032,-241.38,0.00010959,2]
[335399209,1724189439042,-250.0,0.00010959,2]
[335399211,1724189439052,-330.24732685,0.00010979,2]
[335399213,1724189439062,-500.0,0.00010985,2]
[335399214,1724189439071,-150.75,0.0001099,2]
[335399215,1724189439080,-1197.69592073,0.00010997,2]
[335399217,1724189439090,-152.31108172,0.00010999,2]
[335399219,1724189439100,-1438.46953182,0.00010999,3]
[335399221,1724189439110,-1159.36161295,0.00010999,3]
[335399223,1724189439119,-500.0,0.00010999,2]
[335399225,1724189439129,-500.0,0.00010999,2]
[335399227,1724189439138,-500.0,0.00010999,2]
[335399229,1724189439148,-812.98,0.00010999,2]
[335399231,1724189439157,-500.0,0.00010999,2]
[335399232,1724189439166,-500.0,0.00010999,2]
[335399234,1724189439176,-512.76,0.00010999,2]
[335399236,1724189439185,-500.0,0.00010999,2]
[335399238,1724189439196,-239246.69553076,0.00011,2]
[335399240,1724189439206,-150.0,0.00011,2]
[335399242,1724189439215,-672.06,0.00011116,2]
[335399244,1724189439225,-409.92,0.00011117,2]
[335399246,1724189439234,-153.5,0.00011136,2]
[335399248,1724189439243,-222.28,0.00011143,2]
[335399250,1724189439253,-500.0,0.00011164,2]
[335399252,1724189439262,-500.0,0.00011164,2]
[335399254,1724189439272,-500.00000003,0.00011164,2]
[335399256,1724189439280,-500.0,0.00011164,2]
[335399258,1724189439290,-500.0,0.00011196,2]
[335399260,1724189439299,-500.0,0.00011567,2]
[335399262,1724189439308,-167.06634823,0.00011569,2]
[335399264,1724189439318,-500.0,0.0001159,2]
[335399266,1724189439328,-500.0,0.00011758,2]
[335399268,1724189439338,-11178.20693889,0.00011896,2]
[335399269,1724189439348,-274.29840678,0.00011923,2]
[335399271,1724189439357,-608.46947508,0.00011988,2]
[335399273,1724189439365,-9275.57361174,0.00012121,2]
[335399275,1724189439375,-3252.98670935,0.00012121,2]
[335399277,1724189439384,-229.66145693,0.00012126,2]
[335399279,1724189439394,-831.75,0.00012126,2]
[335399281,1724189439403,-569.42537633,0.00012204,2]
[335399283,1724189439414,-171.68,0.00012275,2]
[335399285,1724189439423,-672.06,0.00012351,2]
[335399287,1724189439433,-409.92,0.00012353,2]
[335399289,1724189439442,-153.5,0.00012374,2]
[335399291,1724189439451,-222.28,0.00012382,2]
[335399293,1724189439461,-500.0,0.00012426,2]
[335399295,1724189439470,-500.0,0.00012456,2]
[335399297,1724189439480,-500.0,0.00012631,2]
[335399299,1724189439489,-421.78,0.00012722,2]
[335399301,1724189439498,-500.0,0.00012795,2]
[335399303,1724189439507,-500.0,0.00012896,2]
[335399304,1724189439516,-500.0,0.0001296,2]
[335399306,1724189439525,-500.0,0.00012992,2]
[335399308,1724189439534,-1780.70658812,0.00013001,2]
[335399310,1724189439543,-11178.20693889,0.00013021,2]
[335399312,1724189439552,-274.29840678,0.00013069,2]
[335399314,1724189439561,-500.0,0.00013148,2]
[335399316,1724189439570,-500.0,0.00013284,2]
[335399318,1724189439579,-2662.0,0.00013478,9]
[335399320,1724189439589,-500.0,0.00013585,2]
[335399322,1724189439598,-672.06,0.00013586,2]
[335399324,1724189439607,-409.92,0.00013588,2]
[335399326,1724189439616,-153.5,0.00013611,2]
[335399328,1724189439626,-500.0,0.00013619,2]
[335399330,1724189439635,-222.28,0.0001362,2]
[335399332,1724189439644,-440.0,0.00013663,2]
[335399334,1724189439652,-176.15,0.00013699,2]
[335399336,1724189439662,-200.0,0.00013699,2]
[335399338,1724189439671,-5000.0,0.00013699,2]
[335399340,1724189439680,-2751.0,0.00013699,2]
[335399342,1724189439689,-671.0,0.00013761,2]
[335399344,1724189439698,-150.75,0.0001379,2]
[335399346,1724189439707,-542.41587299,0.00013799,2]
[335399348,1724189439717,-500.0,0.00013799,2]
[335399350,1724189439728,-500.0,0.00013799,2]
[335399352,1724189439737,-512.76,0.00013799,2]
[335399354,1724189439747,-500.0,0.00013799,2]
[335399356,1724189439756,-164.95731866,0.000138,2]
[335399358,1724189439766,-238604.777627,0.000138,3]
[335399360,1724189439777,-440.0,0.00013803,2]
[335399361,1724189439786,-500.44775331,0.0001387,2]
[335399363,1724189439795,-150.75,0.0001388,2]
[335399365,1724189439804,-23860.4777627,0.00013889,3]
[335399367,1724189439813,-500.0,0.00013889,2]
[335399369,1724189439822,-500.0,0.00013889,2]
[335399371,1724189439833,-512.76,0.00013889,2]
[335399372,1724189439842,-500.0,0.00013889,2]
[335399374,1724189439851,-64317.82286372,0.0001389,3]
[335399377,1724189439868,-653.67901261,0.0001389,3]
[335399379,1724189439879,-2735.53908701,0.0001389,3]
[335399382,1724189439894,-37102.9931221,0.0001389,3]
[335399384,1724189439904,-324.71629837,0.0001389,3]
[335399417,1724189440500,-6300.03274176,0.0001389,3]
[335399418,1724189440560,-517.455,0.0001389,3]
[335399419,1724189440794,-1076.0,0.0001389,3]
[335399638,1724189444075,-5993.487757,0.0001389,3]
[335399639,1724189444095,-280.66293043,0.0001389,3]
[335399640,1724189444104,-150.75,0.0001389,2]
[335399641,1724189444113,-198.85146628,0.00013899,2]
[335399642,1724189446308,-301.14853372,0.00013899,2]
[335399643,1724189446317,-361.2212286,0.00013899,2]
[335399644,1724189446326,-812.98,0.00013899,2]
[335399645,1724189446336,-500.0,0.00013899,2]
[335399646,1724189446345,-162.65023886,0.00013899,2]
[335399647,1724189446356,-337.34976114,0.00013899,2]
[335399648,1724189446366,-512.76,0.00013899,2]
[335399649,1724189446375,-285.21021886,0.00013899,2]
[335399650,1724189446386,-214.78978114,0.00013899,2]
[335399651,1724189446395,-258.769557,0.000139,2]
[335399652,1724189446405,-95.24820407,0.000139,2]
[335399692,1724190631471,-500.0,0.00010004,2]
[335399694,1724190631482,-75.05,0.00010523,2]
[335399698,1724190631531,-312.02099594,0.00010523,2]
[335399699,1724190631703,-68.48900406,0.00010523,2]
[335399700,1724190631712,-500.0,0.00010627,2]
[335399701,1724190631722,-115.97502427,0.00010793,2]
[335399702,1724190631733,-384.02497573,0.00010793,2]
[335399703,1724190631744,-515.97502427,0.00010958,2]
[335399704,1724190631755,-161.50497573,0.00010958,2]
[335399706,1724190631764,-168.10380164,0.00010996,2]
[335399717,1724190637516,-509.37619836,0.00010996,2]
[335399718,1724190637525,-677.48,0.00010999,2]
[335399719,1724190637534,-150.0,0.00011,2]
[335399720,1724190637715,-500.0,0.00011164,2]
[335399721,1724190637726,-500.0,0.00011195,2]
[335399722,1724190637735,-500.0,0.00011381,2]
[335399723,1724190637744,-500.0,0.00011441,2]
[335399724,1724190637754,-500.0,0.00011546,2]
[335399725,1724190637763,-324.84,0.00011637,2]
[335399726,1724190637773,-500.0,0.0001165,2]
[335399727,1724190637782,-500.0,0.000117,2]
[335399728,1724190637791,-500.0,0.00011809,2]
[335399729,1724190637800,-238.16,0.00012086,2]
[335399730,1724190637809,-500.0,0.00012172,2]
[335399731,1724190637818,-250.0,0.00012266,2]
[335399732,1724190637827,-300.0,0.00012289,2]
[335399733,1724190637836,-222.3,0.0001229,2]
[335399734,1724190637846,-804.84380164,0.0001229,2]
[335399736,1724190637857,-195.15619836,0.0001229,2]
[335399737,1724190637867,-500.0,0.00012293,2]
[335399739,1724190637876,-500.0,0.00012387,2]
[335399741,1724190637885,-1443.13,0.0001243,2]
[335399743,1724190637895,-500.0,0.0001246,2]
[335399745,1724190637904,-500.0,0.00012617,2]
[335399747,1724190637913,-455.56,0.00012787,2]
[335399749,1724190637922,-500.0,0.0001283,2]
[335399751,1724190637932,-500.0,0.00012866,2]
[335399753,1724190637941,-152.0,0.00012893,3]
[335399755,1724190637950,-1289.1217656,0.00012938,2]
[335399757,1724190637959,-500.0,0.00012947,2]
[335399759,1724190637968,-177.92625904,0.00013001,2]
[335399760,1724190637977,-841.93,0.00013041,2]
[335399762,1724190637986,-790.63,0.00013041,2]
[335399764,1724190637995,-155.0,0.00013042,2]
[335399767,1724190638004,-547.78284494,0.00013057,2]
[335399770,1724190638013,-53.50390793,0.00013086,2]
[335399775,1724190638025,-634.03094195,0.00013086,2]
[335399777,1724190638035,-155.0,0.00013086,2]
[335399779,1724190638045,-324.84,0.00013091,2]
[335399781,1724190638054,-790.63,0.00013241,2]
[335399783,1724190638063,-500.0,0.00013277,2]
[335399785,1724190638072,-152.0,0.00013375,4]
[335399787,1724190638083,-331.3534943,0.00013391,2]
[335399789,1724190638092,-500.0,0.00013403,2]
[335399791,1724190638101,-500.0,0.00013448,2]
[335399793,1724190638111,-500.0,0.00013482,2]
[335399795,1724190638121,-420.0,0.00013487,2]
[335399797,1724190638131,-500.0,0.00013524,2]
[335399799,1724190638140,-200.0,0.00013699,2]
[335399801,1724190638149,-95.96740345,0.00013699,2]
[335399968,1724190639837,-2655.03259655,0.00013699,2]
[335399970,1724190639846,-7824.74485725,0.00013727,2]
[335399972,1724190639856,-677.48,0.00013799,2]
[335399974,1724190639865,-677.48,0.00013799,2]
[335399976,1724190639874,-1418.48677998,0.000138,2]
[335399978,1724190639887,-5577.69796219,0.000138,2]
[335399980,1724190639897,-24199.32512282,0.000138,2]
[335399987,1724190639948,-646.725,0.000138,2]
[335399989,1724190639958,-681.26488617,0.000138,2]
[335399995,1724190640012,-66773.15674884,0.000138,2]
[335399997,1724190640023,-5122.6458,0.000138,2]
[335399999,1724190640032,-3150.67996074,0.000138,2]
[335400001,1724190640043,-9511.12059182,0.000138,2]
[335400010,1724190640126,-8256.14014744,0.000138,2]
[335400011,1724190640135,-1000.0,0.00013827,2]
[335400013,1724190640145,-152.0,0.00013857,5]
[335400015,1724190640154,-677.48,0.00013899,2]
[335400017,1724190640166,-677.48,0.00013899,2]
[335400019,1724190640176,-1500.0,0.000139,2]
[335400021,1724190640187,-640.63939225,0.00013904,2]
[335400023,1724190640196,-220.382832,0.00013973,2]
[335400025,1724190640206,-500.0,0.00013977,2]
[335400027,1724190640216,-1000.0,0.00013999,4]
[335400028,1724190640225,-538.0341324,0.00014,2]
[335400030,1724190640235,-150.0,0.00014,2]
[335400031,1724190640245,-500.0,0.00014273,2]
[335400032,1724190640256,-152.0,0.00014339,6]
[335400033,1724190640265,-500.0,0.00014342,2]
[335400034,1724190640275,-500.0,0.00014396,2]
[335400035,1724190640286,-314.0,0.00014491,2]
[335400036,1724190640295,-324.84,0.00014546,2]
[335400037,1724190640305,-7824.74485722,0.00014601,2]
[335400038,1724190640315,-314.0,0.0001464,2]
[335400039,1724190640324,-424.71,0.00014729,2]
[335400040,1724190640333,-356.83,0.00014729,2]
[335400041,1724190640342,-200.39904225,0.00014753,2]
[335400042,1724190640351,-155.0,0.00014753,2]
[335400044,1724190640361,-314.0,0.00014789,2]
[335400046,1724190640370,-220.382832,0.00014795,2]
[335400048,1724190640381,-2500.0,0.000148,2]
[335400050,1724190640391,-587.0,0.00014802,2]
[335400052,1724190640400,-152.0,0.00014821,7]
[335400054,1724190640409,-153.5,0.00014848,2]
[335400056,1724190640418,-1934.87828112,0.0001485,2]
[335400273,1724190642581,-643.71140223,0.0001485,2]
[335400276,1724190642592,-2865.81931308,0.0001485,2]
[335400344,1724190643333,-613.09825755,0.0001485,2]
[335400346,1724190643345,-293.75433028,0.0001485,2]
[335400348,1724190643357,-5390.39125959,0.0001485,2]
[335400350,1724190643367,-500.0,0.00014899,2]
[335400352,1724190643376,-500.0,0.00014899,2]
[335400354,1724190643389,-500.0,0.00014899,2]
[335400356,1724190643399,-150.26,0.000149,2]
[335400358,1724190643408,-2961.33869141,0.000149,31]
[335400360,1724190643419,-711.36130859,0.000149,31]
[335400362,1724190643428,-301.60904769,0.000149,31]
[335400364,1724190643439,-953.70061537,0.000149,31]
[335400366,1724190643450,-680.06549859,0.000149,31]
[335400368,1724190643462,-1737.32483835,0.000149,31]
[335400370,1724190643471,-3672.7,0.000149,31]
[335400372,1724190643480,-3672.7,0.000149,31]
[335400374,1724190643490,-3672.7,0.000149,31]
[335400376,1724190643499,-3672.7,0.000149,31]
[335400378,1724190643508,-3672.7,0.000149,31]
[335400380,1724190643518,-391.7710707,0.000149,31]
[335400382,1724190643529,-1289.41102724,0.000149,31]
[335400384,1724190643541,-1074.04393756,0.000149,31]
[335400590,1724190645581,-917.4739645,0.000149,31]
[335400592,1724190645590,-606.30878515,0.000149,31]
[335400598,1724190645644,-3066.39121485,0.000149,31]
[335400600,1724190645653,-3672.7,0.000149,31]
[335400602,1724190645663,-3672.7,0.000149,31]
[335400604,1724190645672,-3672.7,0.000149,31]
[335400606,1724190645681,-3672.7,0.000149,31]
[335400608,1724190645691,-3672.7,0.000149,31]
[335400610,1724190645700,-3672.7,0.000149,31]
[335400612,1724190645709,-3672.7,0.000149,31]
[335400614,1724190645718,-500.0,0.00014932,2]
[335400616,1724190645728,-314.0,0.00014939,2]
[335400618,1724190645736,-543.13020852,0.00014939,2]
[335400620,1724190645746,-500.0,0.00014942,2]
[335400622,1724190645756,-281.42935453,0.0001497,2]
[335400624,1724190645765,-22551.0613001,0.0001499,3]
[335400626,1724190645773,-6999.0155028,0.00014996,2]
[335400628,1724190645783,-3969.17506075,0.00015,2]
[335400630,1724190645793,-1199.27775195,0.00015,2]
[335400631,1724190645802,-7000.0,0.00015,3]
[335400633,1724190645812,-221.0427452,0.00015,2]
[335400636,1724190645822,-676.86348135,0.00015,2]
[335400638,1724190645832,-1000.0,0.00015,4]
[335400640,1724190645842,-6585.0,0.00015,2]
[335400642,1724190645851,-495.0,0.00015,2]
[335400644,1724190645861,-35966.24203691,0.00015,10]
[335400646,1724190645871,-495.0,0.00015,2]
[335400648,1724190645880,-10393.0,0.00015,2]
[335400649,1724190645890,-150.0,0.00015,15]
[335400651,1724190645899,-796.2628115,0.00015041,2]
[335400653,1724190645909,-455.56,0.00015051,2]
[335400655,1724190645918,-500.0,0.00015059,2]
[335400657,1724190645927,-300.0,0.00015068,2]
[335400659,1724190645937,-314.0,0.00015088,2]
[335400661,1724190645946,-500.0,0.00015178,2]
[335400663,1724190645955,-314.0,0.00015238,2]
[335400665,1724190645966,-269.02719696,0.00015252,2]
[335400667,1724190645976,-507.43774146,0.00015252,2]
[335400669,1724190645985,-500.0,0.00015252,2]
[335400671,1724190645995,-500.0,0.00015275,2]
[335400673,1724190646005,-500.0,0.00015298,2]
[335400675,1724190646014,-152.0,0.00015303,8]
[335400677,1724190646024,-1000.0,0.00015363,2]
[335400679,1724190646033,-314.0,0.00015387,2]
[335400681,1724190646043,-700.0,0.00015405,2]
[335400683,1724190646055,-7824.74485722,0.00015475,2]
[335400685,1724190646066,-156.0,0.00015511,2]
[335400687,1724190646075,-150.0,0.00015511,2]
[335400689,1724190646086,-713.52,0.00015511,2]
[335400692,1724190646096,-1062.68,0.00015511,2]
[335400693,1724190646105,-510.17,0.00015511,2]
[335400695,1724190646115,-150.0,0.00015511,2]
[335400697,1724190646124,-150.0,0.00015511,2]
[335400699,1724190646135,-150.0,0.00015511,2]
[335400701,1724190646143,-150.0,0.00015511,2]
[335400703,1724190646153,-559.0,0.00015521,2]
[335400705,1724190646164,-500.0,0.00015593,2]
[335400707,1724190646176,-220.382832,0.00015616,2]
[335400709,1724190646185,-152.0,0.00015785,9]
[335400711,1724190646195,-500.0,0.00015826,2]
[335400713,1724190646204,-167.0,0.00015831,2]
[335400715,1724190646215,-500.0,0.00015959,2]
[335400717,1724190646224,-254.48505923,0.0001597,2]
[335400719,1724190646233,-1000.0,0.00016,4]
[335400721,1724190646243,-2000.0,0.00016,2]
[335400723,1724190646256,-286.788537,0.00016,2]
[335400725,1724190646265,-324.84,0.00016001,2]
[335400727,1724190646274,-3391.986869,0.0001601,2]
[335400729,1724190646283,-500.0,0.00016031,2]
[335400731,1724190646293,-22513.33420123,0.00016106,3]
[335400734,1724190646307,-37.72709887,0.00016106,3]
[335400735,1724190646316,-5843.27,0.00016116,2]
[335400737,1724190646326,-500.0,0.00016196,2]
[335400739,1724190646335,-150.0,0.000162,2]
[335400741,1724190646344,-823.0,0.00016244,2]
[335400743,1724190646353,-152.0,0.00016267,10]
[335400745,1724190646362,-153.32809911,0.00016267,5]
[335400747,1724190646371,-500.0,0.00016302,2]
[335400749,1724190646381,-7824.74485722,0.00016349,2]
[335400751,1724190646390,-167.0,0.00016354,2]
[335400753,1724190646400,-500.0,0.0001637,2]
[335400755,1724190646409,-320.72880982,0.0001642,2]
[335400757,1724190646418,-220.382832,0.00016438,2]
[335400758,1724190646427,-300.0,0.00016438,2]
[335400759,1724190646436,-4500.0,0.00016463,7]
[335400760,1724190646445,-500.0,0.0001652,2]
[335400761,1724190646455,-500.0,0.00016538,2]
[335400762,1724190646464,-500.0,0.0001664,2]
[335400763,1724190646474,-173.73,0.00016712,2]
[335400764,1724190646483,-1964.25,0.00016848,2]
[335400765,1724190646492,-167.0,0.00016876,2]
[335400766,1724190646502,-1000.0,0.00016899,2]
[335400767,1724190646511,-500.0,0.00016918,2]
[335400768,1724190646519,-3388.63359685,0.00016976,2]
[335400769,1724190646528,-3388.63359685,0.00016976,2]
[335400770,1724190646537,-900.0,0.00017,6]
[335400771,1724190646546,-300.0,0.00017,30]
[335400772,1724190646555,-323.30052587,0.00017,50]
[335400773,1724190646564,-356.83,0.00017069,2]
[335400774,1724190646574,-150.0,0.00017069,2]